Department Family,Entity,Payment Date,Expense Type,Expense Area,Supplier,Transaction Number,Amount,Description
MOJ,NOMS,41646,AP refund credit note  402109,Control Accounts,NHS England,Refund credit note  402109,"1,220,000.00",Refund credit note  402109
MOJ,NOMS,41649,AP refund invoice 394990,Control Accounts,NHS England,Refund invoice 394990,"99,609.01",Refund invoice 394990
MOJ,NOMS,02/01/2014,"Books, Stationery & IT Consumables",Central Budgets,J P MORGAN EUROPE LTD,5208968,"74,779.62","Books, stationery and IT consumables"
MOJ,NOMS,29/01/2014,Buildings - Acquisitions,South Central Area,TRAKA PLC,5192291,"48,719.57",Enhancement to buildings
MOJ,NOMS,10/01/2014,Buildings - Acquisitions,Ranby,ELITE SYSTEMS (GB) LTD,5204011,"140,848.20",Enhancement to buildings
MOJ,NOMS,10/01/2014,Buildings - Acquisitions,Ranby,ELITE SYSTEMS (GB) LTD,5211435,"46,949.40",Enhancement to buildings
MOJ,NOMS,17/01/2014,Clothing,One3One Solutions,JIANGSU SAINTY CORP LTD,5225094,"47,583.00",Prisoner clothing and other consumable items
MOJ,NOMS,09/01/2014,Clothing,One3One Solutions,CARPENTER LTD,10343476,"41,303.00",Mattresses for prisoners' beds
MOJ,NOMS,30/01/2014,Clothing,One3One Solutions,CARPENTER LTD,5205021,"40,978.56",Mattresses for prisoners' beds
MOJ,NOMS,17/01/2014,Clothing,One3One Solutions,JIANGSU SAINTY CORP LTD,5224061,"29,911.50",Prisoner clothing and other consumable items
MOJ,NOMS,09/01/2014,Clothing,One3One Solutions,CARPENTER LTD,10356906,"28,718.86",Mattresses for prisoners' beds
MOJ,NOMS,21/01/2014,Consumables,Procurement Group,JIANGSU SUNSHINE DONGSHENG IMP & EXP CO LTD,5215011,"40,981.30",Staff uniforms
MOJ,NOMS,15/01/2014,Contract IT Maintenance,Procurement Group,IBM DIRECT( UNITED KINGDOM) LTD,5215856,"37,814.00",IT maintenance and support
MOJ,NOMS,16/01/2014,Contract IT Maintenance,NOMS ICT,HOME OFFICE,5186981,"56,835.20",IT maintenance and support
MOJ,NOMS,30/01/2014,Contract IT Maintenance,NOMS ICT,HOME OFFICE,5226207,"40,824.66",IT maintenance and support
MOJ,NOMS,23/01/2014,Contract IT Maintenance,MOJ Shared Services NOMS Delivery,HP ENTERPRISE SERVICES UK LTD,5230137,"742,030.52",IT maintenance and support
MOJ,NOMS,21/01/2014,Contract IT Maintenance,MOJ Shared Services NOMS Delivery,METHODS CONSULTING LTD,5225300,"31,730.00",IT maintenance and support
MOJ,NOMS,17/01/2014,Contract IT Maintenance,MoJ ICT,HP ENTERPRISE SERVICES UK LTD,5181479,"198,207.49",IT maintenance and support
MOJ,NOMS,28/01/2014,Contract IT Maintenance,MoJ ICT,STERIA LTD,5174320,"51,068.34",IT maintenance and support
MOJ,NOMS,07/01/2014,Contract IT Maintenance,MoJ ICT,HP ENTERPRISE SERVICES UK LTD,5204590,"38,936.68",IT maintenance and support
MOJ,NOMS,03/01/2014,Contract IT Maintenance,HOPS Payroll Charge,CGI IT UK LTD,5208952,"64,796.77",IT maintenance and support
MOJ,NOMS,24/01/2014,Contract IT Maintenance,HOPS Payroll Charge,CGI IT UK LTD,5225373,"44,326.51",IT maintenance and support
MOJ,NOMS,16/01/2014,Contracted-out Building Maintenance,Woodhill,PHOENIX SPECIALIST FLOORING CONTRACTS LTD,5222267,"40,225.25",Maintenance work
MOJ,NOMS,29/01/2014,Contracted-out Building Maintenance,Estates Capacity,HOME OFFICE,5237326,"3,008,883.91",Maintenance work
MOJ,NOMS,08/01/2014,Contracted-out Building Maintenance,Brixton,MITIE JUSTICE LTD,5181041,"185,898.41",Maintenance work
MOJ,NOMS,09/01/2014,Contracted-out Building Maintenance,Brixton,MITIE JUSTICE LTD,5213044,"140,799.92",Maintenance work
MOJ,NOMS,08/01/2014,Contracted-out Catering Services,Woodhill,ARAMARK LTD,5213359,"25,747.66",Catering services 
MOJ,NOMS,09/01/2014,Contracted-out Catering Services,Holme House,ESS SUPPORT SERVICES WORLDWIDE,5173789,"46,035.59",Catering services 
MOJ,NOMS,22/01/2014,Contracted-out Catering Services,Hewell,ARAMARK LTD,5213351,"32,906.20",Catering services 
MOJ,NOMS,24/01/2014,Contracted-out Community Payback,Community Payback,SERCO LTD,5232945,"522,578.41",Community Payback Services
MOJ,NOMS,17/01/2014,Contracted-out Computer Services,Planning and Analysis Group,MOUCHEL MANAGEMENT CONSULTING LTD,5225328,"104,291.62",Computer services 
MOJ,NOMS,29/01/2014,Contracted-out Computer Services,MoJ ICT,HP ENTERPRISE SERVICES UK LTD,5215574,"4,716,877.00",Computer services 
MOJ,NOMS,14/01/2014,Contracted-out Education,Morton Hall,LINCOLN COLLEGE,5218413,"27,221.33",Education services 
MOJ,NOMS,10/01/2014,Contracted-out Education,Dover,PERTEMPS EDUCATION & LEARNING ALLIANCE LTD,5215380,"25,592.18",Education services 
MOJ,NOMS,21/01/2014,Contracted-out Electronic Monitoring,Electronic Monitoring,CAPITA BUSINESS SERVICES LTD,5196542,"4,002,511.20",Electronic monitoring services 
MOJ,NOMS,27/01/2014,Contracted-out Electronic Monitoring,Electronic Monitoring,CAPITA BUSINESS SERVICES LTD,5196541,"1,238,421.60",Electronic monitoring services 
MOJ,NOMS,08/01/2014,Contracted-out Escorts,Prisoner Escort & Custody Service (PECS),GEO AMEY PECS LTD,5210517,"2,784,113.33",Prisoner escort services 
MOJ,NOMS,07/01/2014,Contracted-out Escorts,Prisoner Escort & Custody Service (PECS),GEO AMEY PECS LTD,5210518,"2,293,642.58",Prisoner escort services 
MOJ,NOMS,07/01/2014,Contracted-out Escorts,Prisoner Escort & Custody Service (PECS),GEO AMEY PECS LTD,5210516,"2,246,986.38",Prisoner escort services 
MOJ,NOMS,14/01/2014,Contracted-out Library,Winchester,LOCAL COUNCILS LOAN CHARGES,5216894,"35,800.38",Library services 
MOJ,NOMS,22/01/2014,Contracted-out Library,Manchester,MANCHESTER CITY COUNCIL,5228769,"28,052.97",Library services 
MOJ,NOMS,16/01/2014,Contracted-out Library,Kirklevington Grange,STOCKTON-ON-TEES BOROUGH COUNCIL,5221987,"27,851.94",Library services 
MOJ,NOMS,23/01/2014,Contracted-out Library,Isis,GLL (GREENWICH LEISURE LIMITED),5228839,"25,261.48",Library services 
MOJ,NOMS,16/01/2014,Contracted-out Library,Holme House,STOCKTON-ON-TEES BOROUGH COUNCIL,5221985,"90,000.00",Library services 
MOJ,NOMS,31/01/2014,Contracted-out Medical services,Whitemoor,CAMBRIDGESHIRE & PETERBOROUGH NHS FOUNDATION TRUST,5239336,"148,409.70",Payments for seconded clinical staff
MOJ,NOMS,23/01/2014,Contracted-out Medical services,Dover,NHS ENGLAND,5229661,"139,565.00",Healthcare services in IRC funded by UKBA
MOJ,NOMS,17/01/2014,Contracted-out operation of prisons and detention centres,Thameside,BWP PROJECT SERVICES LTD,5212967,"2,511,245.46",Prisons and detention centres operated by an external provider
MOJ,NOMS,20/01/2014,Contracted-out operation of prisons and detention centres,Sodexo Northumberland,SODEXO LTD,5211776,"2,469,781.00",Prisons and detention centres operated by an external provider
MOJ,NOMS,10/01/2014,Contracted-out operation of prisons and detention centres,Rye Hill,ONLEY PRISON SERVICES LTD,5212829,"1,625,313.53",Prisons and detention centres operated by an external provider
MOJ,NOMS,07/01/2014,Contracted-out operation of prisons and detention centres,Rye Hill,ONLEY PRISON SERVICES LTD,5212812,"39,506.43",Prisons and detention centres operated by an external provider
MOJ,NOMS,14/01/2014,Contracted-out operation of prisons and detention centres,Peterborough,PETERBOROUGH PRISON MANAGEMENT LTD,5217069,"1,482,164.74",Prisons and detention centres operated by an external provider
MOJ,NOMS,09/01/2014,Contracted-out operation of prisons and detention centres,Peterborough,PETERBOROUGH PRISON MANAGEMENT LTD,5215057,"1,315,073.76",Prisons and detention centres operated by an external provider
MOJ,NOMS,09/01/2014,Contracted-out operation of prisons and detention centres,Peterborough,PETERBOROUGH PRISON MANAGEMENT LTD,5215054,"43,628.16",Prisons and detention centres operated by an external provider
MOJ,NOMS,14/01/2014,Contracted-out operation of prisons and detention centres,Peterborough,PETERBOROUGH PRISON MANAGEMENT LTD,5217076,"41,168.48",Prisons and detention centres operated by an external provider
MOJ,NOMS,09/01/2014,Contracted-out operation of prisons and detention centres,Peterborough,PETERBOROUGH PRISON MANAGEMENT LTD,5215055,"41,168.48",Prisons and detention centres operated by an external provider
MOJ,NOMS,09/01/2014,Contracted-out operation of prisons and detention centres,Peterborough,PETERBOROUGH PRISON MANAGEMENT LTD,5215058,"41,134.46",Prisons and detention centres operated by an external provider
MOJ,NOMS,14/01/2014,Contracted-out operation of prisons and detention centres,Peterborough,PETERBOROUGH PRISON MANAGEMENT LTD,5217083,"29,184.74",Prisons and detention centres operated by an external provider
MOJ,NOMS,09/01/2014,Contracted-out operation of prisons and detention centres,Peterborough,PETERBOROUGH PRISON MANAGEMENT LTD,5215056,"28,588.56",Prisons and detention centres operated by an external provider
MOJ,NOMS,14/01/2014,Contracted-out operation of prisons and detention centres,Peterborough,PETERBOROUGH PRISON MANAGEMENT LTD,5217086,"-95,097.46",Prisons and detention centres operated by an external provider
MOJ,NOMS,03/01/2014,Contracted-out operation of prisons and detention centres,Parc,BRIDGEND CUSTODIAL SERVICES LTD,5205625,"2,726,760.00",Prisons and detention centres operated by an external provider
MOJ,NOMS,03/01/2014,Contracted-out operation of prisons and detention centres,Parc,BRIDGEND CUSTODIAL SERVICES LTD,5205626,"1,115,078.27",Prisons and detention centres operated by an external provider
MOJ,NOMS,02/01/2014,Contracted-out operation of prisons and detention centres,Parc,BRIDGEND CUSTODIAL SERVICES LTD,5205628,"346,961.92",Prisons and detention centres operated by an external provider
MOJ,NOMS,03/01/2014,Contracted-out operation of prisons and detention centres,Parc,BRIDGEND CUSTODIAL SERVICES LTD,5205627,"134,067.07",Prisons and detention centres operated by an external provider
MOJ,NOMS,06/01/2014,Contracted-out operation of prisons and detention centres,Parc,BRIDGEND CUSTODIAL SERVICES LTD,5205629,"108,678.19",Prisons and detention centres operated by an external provider
MOJ,NOMS,02/01/2014,Contracted-out operation of prisons and detention centres,Parc,BRIDGEND CUSTODIAL SERVICES LTD,5205630,"35,363.68",Prisons and detention centres operated by an external provider
MOJ,NOMS,13/01/2014,Contracted-out operation of prisons and detention centres,Oakwood,G4S JUSTICE SERVICES LTD,5215248,"1,466,157.57",Prisons and detention centres operated by an external provider
MOJ,NOMS,13/01/2014,Contracted-out operation of prisons and detention centres,Lowdham Grange,LOWDHAM GRANGE PRISON SERVICES LTD,5212752,"2,327,775.13",Prisons and detention centres operated by an external provider
MOJ,NOMS,07/01/2014,Contracted-out operation of prisons and detention centres,Lowdham Grange,LOWDHAM GRANGE PRISON SERVICES LTD,5212749,"43,574.55",Prisons and detention centres operated by an external provider
MOJ,NOMS,07/01/2014,Contracted-out operation of prisons and detention centres,Lowdham Grange,LOWDHAM GRANGE PRISON SERVICES LTD,5212750,"43,171.84",Prisons and detention centres operated by an external provider
MOJ,NOMS,06/01/2014,Contracted-out operation of prisons and detention centres,Forest Bank,AGECROFT PRISON MANAGEMENT LTD,5210358,"3,133,255.76",Prisons and detention centres operated by an external provider
MOJ,NOMS,06/01/2014,Contracted-out operation of prisons and detention centres,Forest Bank,AGECROFT PRISON MANAGEMENT LTD,5210829,"40,721.14",Prisons and detention centres operated by an external provider
MOJ,NOMS,14/01/2014,Contracted-out operation of prisons and detention centres,Dovegate,MORETON PRISON SERVICES LTD,5211739,"2,672,566.22",Prisons and detention centres operated by an external provider
MOJ,NOMS,24/01/2014,Contracted-out operation of prisons and detention centres,Dovegate,MORETON PRISON SERVICES LTD,5232445,"658,531.42",Prisons and detention centres operated by an external provider
MOJ,NOMS,07/01/2014,Contracted-out operation of prisons and detention centres,Dovegate,MORETON PRISON SERVICES LTD,5212954,"67,158.25",Prisons and detention centres operated by an external provider
MOJ,NOMS,24/01/2014,Contracted-out operation of prisons and detention centres,Doncaster,SERCO LTD,5231095,"1,400,441.80",Prisons and detention centres operated by an external provider
MOJ,NOMS,13/01/2014,Contracted-out operation of prisons and detention centres,Bronzefield,ASHFORD PRISON SERVICES LTD,5214990,"2,553,332.23",Prisons and detention centres operated by an external provider
MOJ,NOMS,09/01/2014,Contracted-out operation of prisons and detention centres,Bronzefield,ASHFORD PRISON SERVICES LTD,5215040,"60,097.10",Prisons and detention centres operated by an external provider
MOJ,NOMS,09/01/2014,Contracted-out operation of prisons and detention centres,Bronzefield,ASHFORD PRISON SERVICES LTD,5215042,"34,948.95",Prisons and detention centres operated by an external provider
MOJ,NOMS,13/01/2014,Contracted-out operation of prisons and detention centres,Bronzefield,ASHFORD PRISON SERVICES LTD,5215001,"-34,540.80",Prisons and detention centres operated by an external provider
MOJ,NOMS,13/01/2014,Contracted-out operation of prisons and detention centres,Bronzefield,ASHFORD PRISON SERVICES LTD,5215002,"-89,375.48",Prisons and detention centres operated by an external provider
MOJ,NOMS,10/01/2014,Contracted-out operation of prisons and detention centres,Ashfield,PUCKLECHURCH CUSTODIAL SERVICES LTD,5211738,"1,060,944.00",Prisons and detention centres operated by an external provider
MOJ,NOMS,13/01/2014,Contracted-out operation of prisons and detention centres,Ashfield,PUCKLECHURCH CUSTODIAL SERVICES LTD,5212956,"27,215.12",Prisons and detention centres operated by an external provider
MOJ,NOMS,15/01/2014,Contracted-out operation of prisons and detention centres,Altcourse,FAZAKERLEY PRISON SERVICES LTD,5212756,"3,718,158.60",Prisons and detention centres operated by an external provider
MOJ,NOMS,07/01/2014,Contracted-out operation of prisons and detention centres,Altcourse,FAZAKERLEY PRISON SERVICES LTD,5212755,"260,469.75",Prisons and detention centres operated by an external provider
MOJ,NOMS,07/01/2014,Contracted-out operation of prisons and detention centres,Altcourse,FAZAKERLEY PRISON SERVICES LTD,5212801,"33,514.30",Prisons and detention centres operated by an external provider
MOJ,NOMS,15/01/2014,Contracted-out operation of prisons and detention centres,Altcourse,FAZAKERLEY PRISON SERVICES LTD,5212908,"-96,411.52",Prisons and detention centres operated by an external provider
MOJ,NOMS,22/01/2014,Contracted-out Other Services,PSP Regions Frontline Centrally Managed,TEES ESK & WEAR VALLEYS NHS TRUST,5218365,"108,763.75",Mental healthcare support services
MOJ,NOMS,08/01/2014,Contracted-out Other Services,Isle of Wight,COFELY ENERGY SERVICES UK LTD,5212822,"92,477.74",Heat Energy Services
MOJ,NOMS,08/01/2014,Contracted-out Other Services,Estates Capacity,THE NATIONAL ARCHIVES,5213382,"33,708.48",Computer services 
MOJ,NOMS,08/01/2014,Contracted-out Other Services,Deerbolt,COFELY ENERGY SERVICES UK LTD,5212821,"69,150.16",Heat Energy Services
MOJ,NOMS,14/01/2014,Contracted-out Other Services,Deerbolt,COFELY ENERGY SERVICES UK LTD,5182397,"51,581.20",Heat Energy Services
MOJ,NOMS,14/01/2014,Contracted-out Other Services,Deerbolt,COFELY ENERGY SERVICES UK LTD,5150775,"50,312.93",Heat Energy Services
MOJ,NOMS,14/01/2014,Contracted-out Other Services,Deerbolt,COFELY ENERGY SERVICES UK LTD,5111236,"47,580.10",Heat Energy Services
MOJ,NOMS,08/01/2014,Contracted-out Other Services,Blundeston,COFELY ENERGY SERVICES UK LTD,5211485,"48,635.38",Heat Energy Services
MOJ,NOMS,09/01/2014,Contracted-out Other Services,Bail Accommodation Support Services,HOME GROUP LTD (STONHAM),5212983,"621,443.43",Bail accommodation and support services
MOJ,NOMS,10/01/2014,Contracted-out Plant and Equipment Maintenance,Isis,MITIE JUSTICE LTD,5181042,"54,633.59",Maintenance work
MOJ,NOMS,10/01/2014,Contracted-out Plant and Equipment Maintenance,Isis,MITIE JUSTICE LTD,5181040,"25,358.95",Maintenance work
MOJ,NOMS,14/01/2014,Contracted-out Plant and Equipment Maintenance,Isis,MITIE JUSTICE LTD,5213040,"25,358.95",Maintenance work
MOJ,NOMS,08/01/2014,Contracted-out Plant and Equipment Maintenance,Brixton,MITIE JUSTICE LTD,5211802,"42,357.25",Maintenance work
MOJ,NOMS,23/01/2014,Contracted-out Prison Shop,Retail Project Charges,DHL SUPPLY CHAIN LTD,5228685,"1,122,094.00",Prison shop run through a national contract
MOJ,NOMS,13/01/2014,Contracted-out Probation Boards,Standford Hill,KENT PROBATION TRUST,5217121,"27,081.75",Probation services
MOJ,NOMS,08/01/2014,Contracted-out Probation Boards,Eastwood Park,AVON AND SOMERSET PROBATION TRUST,5212859,"31,562.87",Probation services
MOJ,NOMS,28/01/2014,Contracted-out Probation Trusts,York and North Yorkshire Probation Trust,YORK & NORTH YORKSHIRE PROBATION TRUST,5237173,"900,000.00",Probation services
MOJ,NOMS,14/01/2014,Contracted-out Probation Trusts,Wormwood Scrubs,LONDON PROBATION TRUST,5220429,"29,166.32",Probation services
MOJ,NOMS,10/01/2014,Contracted-out Probation Trusts,Wiltshire Probation Trust,WILTSHIRE PROBATION TRUST,5216597,"567,282.00",Probation services
MOJ,NOMS,02/01/2014,Contracted-out Probation Trusts,Whatton,NOTTINGHAMSHIRE PROBATION TRUST,5206349,"38,039.73",Probation services
MOJ,NOMS,28/01/2014,Contracted-out Probation Trusts,West Yorkshire Probation Trust,WEST YORKSHIRE PROBATION TRUST,5237172,"4,200,000.00",Probation services
MOJ,NOMS,29/01/2014,Contracted-out Probation Trusts,West Mercia Probation Trust,WEST MERCIA PROBATION TRUST,5237332,"1,442,072.00",Probation services
MOJ,NOMS,06/01/2014,Contracted-out Probation Trusts,West Mercia Probation Trust,WEST MERCIA PROBATION TRUST,5210499,"842,072.00",Probation services
MOJ,NOMS,31/01/2014,Contracted-out Probation Trusts,Warwickshire Probation Trust,WARWICKSHIRE PROBATION TRUST,5236716,"835,000.00",Probation services
MOJ,NOMS,14/01/2014,Contracted-out Probation Trusts,Wandsworth,LONDON PROBATION TRUST,5220430,"35,901.57",Probation services
MOJ,NOMS,27/01/2014,Contracted-out Probation Trusts,Wales Probation Trust,WALES PROBATION TRUST,5231175,"4,500,000.00",Probation services
MOJ,NOMS,03/01/2014,Contracted-out Probation Trusts,Wales Probation Trust,WALES PROBATION TRUST,5201599,"4,300,000.00",Probation services
MOJ,NOMS,28/01/2014,Contracted-out Probation Trusts,Thames Valley Probation Trust,THAMES VALLEY PROBATION TRUST,5220918,"2,036,904.58",Probation services
MOJ,NOMS,03/01/2014,Contracted-out Probation Trusts,Surrey & Sussex Probation Trust,SURREY & SUSSEX PROBATION TRUST,5209750,"2,000,000.00",Probation services
MOJ,NOMS,30/01/2014,Contracted-out Probation Trusts,Surrey & Sussex Probation Trust,SURREY & SUSSEX PROBATION TRUST,5238333,"1,900,000.00",Probation services
MOJ,NOMS,09/01/2014,Contracted-out Probation Trusts,Staffordshire & West Midlands Probation Trust,STAFFORDSHIRE & WEST MIDLANDS PROBATION TRUST,5214175,"6,200,000.00",Probation services
MOJ,NOMS,07/01/2014,Contracted-out Probation Trusts,South Yorkshire Probation Trust,SOUTH YORKSHIRE PROBATION TRUST,5211754,"1,916,666.67",Probation services
MOJ,NOMS,08/01/2014,Contracted-out Probation Trusts,Send,SURREY & SUSSEX PROBATION TRUST,5212437,"43,906.50",Probation services
MOJ,NOMS,31/01/2014,Contracted-out Probation Trusts,Nottinghamshire Probation Trust,NOTTINGHAMSHIRE PROBATION TRUST,5238632,"1,600,055.00",Probation services
MOJ,NOMS,02/01/2014,Contracted-out Probation Trusts,Nottinghamshire Probation Trust,NOTTINGHAMSHIRE PROBATION TRUST,5199976,"1,475,632.00",Probation services
MOJ,NOMS,15/01/2014,Contracted-out Probation Trusts,Norwich,NORFOLK & SUFFOLK PROBATION TRUST,5220947,"29,679.93",Probation services
MOJ,NOMS,02/01/2014,Contracted-out Probation Trusts,Northumbria Probation Trust,NORTHUMBRIA PROBATION TRUST,5201740,"2,300,061.00",Probation services
MOJ,NOMS,30/01/2014,Contracted-out Probation Trusts,Northumbria Probation Trust,NORTHUMBRIA PROBATION TRUST,5231440,"1,925,200.00",Probation services
MOJ,NOMS,16/01/2014,Contracted-out Probation Trusts,Northumberland,NORTHUMBRIA PROBATION TRUST,5221574,"28,740.48",Probation services
MOJ,NOMS,10/01/2014,Contracted-out Probation Trusts,Northamptonshire Probation Trust,NORTHAMPTONSHIRE PROBATION TRUST,5216960,"716,156.00",Probation services
MOJ,NOMS,30/01/2014,Contracted-out Probation Trusts,Norfolk & Suffolk Probation Trust,NORFOLK & SUFFOLK PROBATION TRUST,5228353,"2,200,000.00",Probation services
MOJ,NOMS,16/01/2014,Contracted-out Probation Trusts,Merseyside Probation Trust,MERSEYSIDE PROBATION TRUST,5222114,"2,000,000.00",Probation services
MOJ,NOMS,21/01/2014,Contracted-out Probation Trusts,London Probation Trust,LONDON PROBATION TRUST,5225768,"10,000,000.00",Probation services
MOJ,NOMS,15/01/2014,Contracted-out Probation Trusts,Littlehey,CAMBRIDGESHIRE & PETERBOROUGH PROBATION TRUST,5221629,"87,902.01",Probation services
MOJ,NOMS,02/01/2014,Contracted-out Probation Trusts,Lincolnshire Probation Trust,LINCOLNSHIRE PROBATION TRUST,5207745,"733,416.00",Probation services
MOJ,NOMS,08/01/2014,Contracted-out Probation Trusts,Leyhill,AVON AND SOMERSET PROBATION TRUST,5212862,"99,693.59",Probation services
MOJ,NOMS,08/01/2014,Contracted-out Probation Trusts,Lewes,SURREY & SUSSEX PROBATION TRUST,5212440,"76,257.94",Probation services
MOJ,NOMS,28/01/2014,Contracted-out Probation Trusts,Leicestershire Probation Trust,LEICESTERSHIRE&RUTLAND PROBATION TRUST,5186558,"1,159,415.25",Probation services
MOJ,NOMS,31/01/2014,Contracted-out Probation Trusts,Leicestershire Probation Trust,LEICESTERSHIRE&RUTLAND PROBATION TRUST,5239407,"1,159,415.25",Probation services
MOJ,NOMS,31/01/2014,Contracted-out Probation Trusts,Lancashire Probation Trust,LANCASHIRE PROBATION TRUST,5231057,"2,000,000.00",Probation services
MOJ,NOMS,02/01/2014,Contracted-out Probation Trusts,Lancashire Probation Trust,LANCASHIRE PROBATION TRUST,5203853,"1,700,000.00",Probation services
MOJ,NOMS,30/01/2014,Contracted-out Probation Trusts,Kent Probation Trust,KENT PROBATION TRUST,5216547,"1,500,000.00",Probation services
MOJ,NOMS,08/01/2014,Contracted-out Probation Trusts,Humberside Probation Trust,HUMBERSIDE PROBATION TRUST,5213825,"1,408,907.00",Probation services
MOJ,NOMS,08/01/2014,Contracted-out Probation Trusts,Hull,HUMBERSIDE PROBATION TRUST,5213852,"27,545.18",Probation services
MOJ,NOMS,28/01/2014,Contracted-out Probation Trusts,Holme House,DURHAM TEES VALLEY PROBATION TRUST,5236356,"25,516.55",Probation services
MOJ,NOMS,15/01/2014,Contracted-out Probation Trusts,Highpoint,NORFOLK & SUFFOLK PROBATION TRUST,5220950,"44,312.07",Probation services
MOJ,NOMS,08/01/2014,Contracted-out Probation Trusts,Highdown,SURREY & SUSSEX PROBATION TRUST,5212441,"92,233.09",Probation services
MOJ,NOMS,09/01/2014,Contracted-out Probation Trusts,Hertfordshire Probation Trust,HERTFORDSHIRE PROBATION TRUST,5215126,"900,000.00",Probation services
MOJ,NOMS,08/01/2014,Contracted-out Probation Trusts,Hampshire Probation Trust,HAMPSHIRE PROBATION TRUST,5213689,"1,900,000.00",Probation services
MOJ,NOMS,08/01/2014,Contracted-out Probation Trusts,Greater Manchester Probation Trust,GREATER MANCHESTER PROBATION TRUST,5210930,"4,050,000.00",Probation services
MOJ,NOMS,06/01/2014,Contracted-out Probation Trusts,Greater Manchester Probation Trust,GREATER MANCHESTER PROBATION TRUST,5209686,"26,016.36",Probation services
MOJ,NOMS,13/01/2014,Contracted-out Probation Trusts,Gloucestershire Probation Trust,GLOUCESTERSHIRE PROBATION TRUST,5217834,"800,000.00",Probation services
MOJ,NOMS,03/01/2014,Contracted-out Probation Trusts,Ford,SURREY & SUSSEX PROBATION TRUST,5209751,"34,872.41",Probation services
MOJ,NOMS,02/01/2014,Contracted-out Probation Trusts,Essex Probation Trust,ESSEX PROBATION TRUST,5206979,"2,000,000.00",Probation services
MOJ,NOMS,16/01/2014,Contracted-out Probation Trusts,Durham Tees Valley Probation Trust,DURHAM TEES VALLEY PROBATION TRUST,5223063,"1,737,720.58",Probation services
MOJ,NOMS,29/01/2014,Contracted-out Probation Trusts,Durham,DURHAM TEES VALLEY PROBATION TRUST,5236354,"33,097.47",Probation services
MOJ,NOMS,02/01/2014,Contracted-out Probation Trusts,Durham,DURHAM TEES VALLEY PROBATION TRUST,5205660,"31,092.70",Probation services
MOJ,NOMS,28/01/2014,Contracted-out Probation Trusts,Dorset Probation Trust,DORSET PROBATION TRUST,5225272,"707,745.25",Probation services
MOJ,NOMS,02/01/2014,Contracted-out Probation Trusts,Devon and Cornwall Probation Trust,DEVON & CORNWALL PROBATION TRUST,5208619,"1,666,666.67",Probation services
MOJ,NOMS,30/01/2014,Contracted-out Probation Trusts,Devon and Cornwall Probation Trust,DEVON & CORNWALL PROBATION TRUST,5227784,"1,337,982.33",Probation services
MOJ,NOMS,28/01/2014,Contracted-out Probation Trusts,Derbyshire Probation Trust,DERBYSHIRE PROBATION TRUST,5223867,"1,000,000.00",Probation services
MOJ,NOMS,28/01/2014,Contracted-out Probation Trusts,Cumbria Probation Trust,CUMBRIA PROBATION TRUST,5218398,"665,833.33",Probation services
MOJ,NOMS,07/01/2014,Contracted-out Probation Trusts,Coldingley,SURREY & SUSSEX PROBATION TRUST,5212438,"37,388.32",Probation services
MOJ,NOMS,30/01/2014,Contracted-out Probation Trusts,Cheshire Probation Trust,CHESHIRE PROBATION TRUST,5224693,"1,250,000.00",Probation services
MOJ,NOMS,15/01/2014,Contracted-out Probation Trusts,Cardiff,WALES PROBATION TRUST,5221105,"55,003.89",Probation services
MOJ,NOMS,02/01/2014,Contracted-out Probation Trusts,Cambridgeshire Probation Trust,CAMBRIDGESHIRE & PETERBOROUGH PROBATION TRUST,5208450,"1,000,000.00",Probation services
MOJ,NOMS,30/01/2014,Contracted-out Probation Trusts,Cambridgeshire Probation Trust,CAMBRIDGESHIRE & PETERBOROUGH PROBATION TRUST,5238917,"625,000.00",Probation services
MOJ,NOMS,15/01/2014,Contracted-out Probation Trusts,Bure,NORFOLK & SUFFOLK PROBATION TRUST,5220952,"27,330.29",Probation services
MOJ,NOMS,08/01/2014,Contracted-out Probation Trusts,Bullingdon,THAMES VALLEY PROBATION TRUST,5212380,"29,895.58",Probation services
MOJ,NOMS,08/01/2014,Contracted-out Probation Trusts,Buckley Hall,GREATER MANCHESTER PROBATION TRUST,5212591,"47,392.34",Probation services
MOJ,NOMS,14/01/2014,Contracted-out Probation Trusts,Brixton,LONDON PROBATION TRUST,5220435,"29,001.59",Probation services
MOJ,NOMS,17/01/2014,Contracted-out Probation Trusts,Belmarsh,LONDON PROBATION TRUST,5220434,"25,600.10",Probation services
MOJ,NOMS,28/01/2014,Contracted-out Probation Trusts,Bedfordshire Probation Trust,BEDFORDSHIRE PROBATION TRUST,5223105,"751,227.17",Probation services
MOJ,NOMS,09/01/2014,Contracted-out Probation Trusts,Avon and Somerset Probation Trust,AVON AND SOMERSET PROBATION TRUST,5213853,"1,636,000.00",Probation services
MOJ,NOMS,09/01/2014,Contracted-out Resettlement Services,Swinfen Hall,NACRO,5213683,"69,999.30",Resettlement and community services for prisoners 
MOJ,NOMS,08/01/2014,Contracted-out Resettlement Services,PSP Regions Frontline Centrally Managed,G4S CARE & JUSTICE SERVICES LTD,5212820,"45,602.56",Resettlement and community services for prisoners 
MOJ,NOMS,21/01/2014,Contracted-out Resettlement Services,Onley,NACRO,5226446,"32,257.00",Resettlement and community services for prisoners 
MOJ,NOMS,20/01/2014,Contracted-out Resettlement Services,NOMS CFO,WORKING LINKS,5225332,"346,121.87",Resettlement and community services for prisoners 
MOJ,NOMS,09/01/2014,Contracted-out Resettlement Services,NOMS CFO,WORKING LINKS,5211752,"303,568.59",Resettlement and community services for prisoners 
MOJ,NOMS,23/01/2014,Contracted-out Resettlement Services,NOMS CFO,MERSEYSIDE PROBATION TRUST,5224766,"202,663.50",Resettlement and community services for prisoners 
MOJ,NOMS,10/01/2014,Contracted-out Resettlement Services,NOMS CFO,PERTEMPS PEOPLE DEVELOPMENT GROUP,5215382,"160,478.88",Resettlement and community services for prisoners 
MOJ,NOMS,24/01/2014,Contracted-out Resettlement Services,NOMS CFO,WEST YORKSHIRE PROBATION TRUST,5229530,"112,639.10",Resettlement and community services for prisoners 
MOJ,NOMS,10/01/2014,Contracted-out Resettlement Services,NOMS CFO,PERTEMPS PEOPLE DEVELOPMENT GROUP,5215383,"106,976.49",Resettlement and community services for prisoners 
MOJ,NOMS,13/01/2014,Contracted-out Resettlement Services,NOMS CFO,SERCO LTD,5215236,"100,100.69",Resettlement and community services for prisoners 
MOJ,NOMS,14/01/2014,Contracted-out Resettlement Services,NOMS CFO,LEICESTERSHIRE&RUTLAND PROBATION TRUST,5217883,"97,240.50",Resettlement and community services for prisoners 
MOJ,NOMS,03/01/2014,Contracted-out Resettlement Services,NOMS CFO,LEICESTERSHIRE&RUTLAND PROBATION TRUST,5201104,"97,240.50",Resettlement and community services for prisoners 
MOJ,NOMS,14/01/2014,Contracted-out Resettlement Services,NOMS CFO,SERCO LTD,5215233,"95,697.00",Resettlement and community services for prisoners 
MOJ,NOMS,24/01/2014,Contracted-out Resettlement Services,NOMS CFO,WEST YORKSHIRE PROBATION TRUST,5229529,"91,350.00",Resettlement and community services for prisoners 
MOJ,NOMS,10/01/2014,Contracted-out Resettlement Services,NOMS CFO,TRIBAL EDUCATION LTD,5213684,"80,372.25",Resettlement and community services for prisoners 
MOJ,NOMS,24/01/2014,Contracted-out Resettlement Services,NOMS CFO,SERCO LTD,5230038,"63,380.80",Resettlement and community services for prisoners 
MOJ,NOMS,24/01/2014,Contracted-out Resettlement Services,NOMS CFO,SERCO LTD,5229624,"61,380.10",Resettlement and community services for prisoners 
MOJ,NOMS,24/01/2014,Contracted-out Resettlement Services,NOMS CFO,SERCO LTD,5230039,"57,072.30",Resettlement and community services for prisoners 
MOJ,NOMS,24/01/2014,Contracted-out Resettlement Services,NOMS CFO,SERCO LTD,5230040,"55,681.02",Resettlement and community services for prisoners 
MOJ,NOMS,22/01/2014,Contracted-out Resettlement Services,NOMS CFO,MERSEYSIDE PROBATION TRUST,5224765,"46,503.14",Resettlement and community services for prisoners 
MOJ,NOMS,20/01/2014,Contracted-out Resettlement Services,NOMS CFO,MERSEYSIDE PROBATION TRUST,5224767,"34,527.40",Resettlement and community services for prisoners 
MOJ,NOMS,27/01/2014,Contracted-out Resettlement Services,NOMS CFO,SOCIAL ENTERPRISE ACUMEN CIC,5223146,"32,000.88",Resettlement and community services for prisoners 
MOJ,NOMS,29/01/2014,Contracted-out Resettlement Services,NOMS CFO,THIRD SECTOR CONSORTIA MANAGEMENT LLP,5133123,"29,732.78",Resettlement and community services for prisoners 
MOJ,NOMS,21/01/2014,Contracted-out Resettlement Services,Glen Parva,NACRO,5226433,"29,032.00",Resettlement and community services for prisoners 
MOJ,NOMS,23/01/2014,Contracted-out Resettlement Services,Cookham Wood,MEDWAY COUNCIL,5229685,"101,890.95",Resettlement and community services for prisoners 
MOJ,NOMS,23/01/2014,Contracted-out Resettlement Services,Cookham Wood,MEDWAY COUNCIL,5229684,"92,086.79",Resettlement and community services for prisoners 
MOJ,NOMS,23/01/2014,Counselling & Advisory Costs,Erlestoke and Shepton Mallet,AVON & WILTSHIRE MENTAL HEALTH PARTNERSHIP N H S TRUST,5231487,"37,407.00",Drug intervention services for prisoners
MOJ,NOMS,17/01/2014,Drugs,Rochester,A A H PHARMACEUTICALS LTD,5225321,"58,597.51",Pharmaceutical items
MOJ,NOMS,17/01/2014,Drugs,Rochester,ALLIANCE HEALTHCARE,5225319,"32,969.91",Pharmaceutical items
MOJ,NOMS,20/01/2014,Electricity,Wymott,EDF ENERGY,5222251,"99,507.35",Electricity utility costs
MOJ,NOMS,20/01/2014,Electricity,Wormwood Scrubs,EDF ENERGY,5222251,"40,129.08",Electricity utility costs
MOJ,NOMS,20/01/2014,Electricity,Woodhill,EDF ENERGY,5222251,"31,459.13",Electricity utility costs
MOJ,NOMS,20/01/2014,Electricity,Whitemoor,EDF ENERGY,5222251,"29,911.90",Electricity utility costs
MOJ,NOMS,20/01/2014,Electricity,Whatton,EDF ENERGY,5222251,"27,693.01",Electricity utility costs
MOJ,NOMS,20/01/2014,Electricity,Wealstun,EDF ENERGY,5222251,"33,813.94",Electricity utility costs
MOJ,NOMS,20/01/2014,Electricity,Wayland,EDF ENERGY,5222251,"35,934.64",Electricity utility costs
MOJ,NOMS,20/01/2014,Electricity,Wandsworth,EDF ENERGY,5222251,"48,808.16",Electricity utility costs
MOJ,NOMS,20/01/2014,Electricity,Wakefield,EDF ENERGY,5222251,"39,219.78",Electricity utility costs
MOJ,NOMS,20/01/2014,Electricity,Swinfen Hall,EDF ENERGY,5222251,"25,383.12",Electricity utility costs
MOJ,NOMS,20/01/2014,Electricity,Swaleside,EDF ENERGY,5222251,"49,523.22",Electricity utility costs
MOJ,NOMS,20/01/2014,Electricity,Stoke Heath,EDF ENERGY,5222251,"25,785.41",Electricity utility costs
MOJ,NOMS,20/01/2014,Electricity,Stafford,EDF ENERGY,5222251,"26,625.12",Electricity utility costs
MOJ,NOMS,20/01/2014,Electricity,Sheppey Clustered Services,EDF ENERGY,5222251,"66,687.49",Electricity utility costs
MOJ,NOMS,20/01/2014,Electricity,Rochester,EDF ENERGY,5222251,"34,655.29",Electricity utility costs
MOJ,NOMS,20/01/2014,Electricity,Risley,EDF ENERGY,5222251,"43,567.01",Electricity utility costs
MOJ,NOMS,20/01/2014,Electricity,Ranby,EDF ENERGY,5222251,"45,660.66",Electricity utility costs
MOJ,NOMS,20/01/2014,Electricity,Pentonville,EDF ENERGY,5222251,"38,593.92",Electricity utility costs
MOJ,NOMS,20/01/2014,Electricity,Onley,EDF ENERGY,5222251,"26,586.40",Electricity utility costs
MOJ,NOMS,20/01/2014,Electricity,Nottingham,EDF ENERGY,5222251,"32,510.12",Electricity utility costs
MOJ,NOMS,20/01/2014,Electricity,Norwich,EDF ENERGY,5222251,"29,887.70",Electricity utility costs
MOJ,NOMS,20/01/2014,Electricity,Northumberland,EDF ENERGY,5222251,"56,482.14",Electricity utility costs
MOJ,NOMS,20/01/2014,Electricity,Mount (The),EDF ENERGY,5222251,"40,029.89",Electricity utility costs
MOJ,NOMS,20/01/2014,Electricity,Manchester,EDF ENERGY,5222251,"56,386.70",Electricity utility costs
MOJ,NOMS,20/01/2014,Electricity,Long Lartin,EDF ENERGY,5222251,"34,478.51",Electricity utility costs
MOJ,NOMS,20/01/2014,Electricity,Liverpool,EDF ENERGY,5222251,"49,179.95",Electricity utility costs
MOJ,NOMS,20/01/2014,Electricity,Littlehey,EDF ENERGY,5222251,"171,281.05",Electricity utility costs
MOJ,NOMS,20/01/2014,Electricity,Lindholme,EDF ENERGY,5222251,"92,049.16",Electricity utility costs
MOJ,NOMS,20/01/2014,Electricity,Lincoln,EDF ENERGY,5222251,"27,645.91",Electricity utility costs
MOJ,NOMS,20/01/2014,Electricity,Lewes,EDF ENERGY,5222251,"26,613.49",Electricity utility costs
MOJ,NOMS,20/01/2014,Electricity,Leeds,EDF ENERGY,5222251,"36,011.57",Electricity utility costs
MOJ,NOMS,20/01/2014,Electricity,Lancaster Farms,EDF ENERGY,5222251,"25,476.70",Electricity utility costs
MOJ,NOMS,20/01/2014,Electricity,Kirkham,EDF ENERGY,5222251,"34,151.34",Electricity utility costs
MOJ,NOMS,20/01/2014,Electricity,Isle of Wight,EDF ENERGY,20889004,"42,417.10",Electricity utility costs
MOJ,NOMS,20/01/2014,Electricity,Isis,EDF ENERGY,5222251,"32,147.24",Electricity utility costs
MOJ,NOMS,20/01/2014,Electricity,Hull,EDF ENERGY,5222251,"31,263.53",Electricity utility costs
MOJ,NOMS,20/01/2014,Electricity,Holme House,EDF ENERGY,5222251,"38,556.96",Electricity utility costs
MOJ,NOMS,20/01/2014,Electricity,Hindley,EDF ENERGY,5222251,"29,556.80",Electricity utility costs
MOJ,NOMS,20/01/2014,Electricity,Highpoint,EDF ENERGY,10444502,"52,636.64",Electricity utility costs
MOJ,NOMS,20/01/2014,Electricity,Highdown,EDF ENERGY,5222251,"55,540.51",Electricity utility costs
MOJ,NOMS,20/01/2014,Electricity,Hewell,EDF ENERGY,5222251,"46,927.82",Electricity utility costs
MOJ,NOMS,20/01/2014,Electricity,Haverigg,EDF ENERGY,5222251,"27,291.52",Electricity utility costs
MOJ,NOMS,20/01/2014,Electricity,Gartree,EDF ENERGY,5222251,"27,827.75",Electricity utility costs
MOJ,NOMS,20/01/2014,Electricity,G4S Birmingham,EDF ENERGY,5222251,"51,379.02",Electricity utility costs
MOJ,NOMS,20/01/2014,Electricity,Full Sutton,EDF ENERGY,5222251,"41,730.31",Electricity utility costs
MOJ,NOMS,20/01/2014,Electricity,Frankland,EDF ENERGY,5222251,"58,163.66",Electricity utility costs
MOJ,NOMS,20/01/2014,Electricity,Ford,EDF ENERGY,5222251,"25,816.78",Electricity utility costs
MOJ,NOMS,20/01/2014,Electricity,Feltham,EDF ENERGY,5222251,"30,397.78",Electricity utility costs
MOJ,NOMS,20/01/2014,Electricity,East Sutton Park,EDF ENERGY,5222251,"46,833.97",Electricity utility costs
MOJ,NOMS,20/01/2014,Electricity,Durham,EDF ENERGY,5222251,"31,890.24",Electricity utility costs
MOJ,NOMS,20/01/2014,Electricity,Doncaster,EDF ENERGY,5222251,"42,181.48",Electricity utility costs
MOJ,NOMS,20/01/2014,Electricity,Dartmoor,EDF ENERGY,5222251,"31,394.83",Electricity utility costs
MOJ,NOMS,20/01/2014,Electricity,Coldingley,EDF ENERGY,5222251,"28,731.46",Electricity utility costs
MOJ,NOMS,20/01/2014,Electricity,Chelmsford,EDF ENERGY,5222251,"27,885.88",Electricity utility costs
MOJ,NOMS,20/01/2014,Electricity,Channings Wood,EDF ENERGY,5222251,"28,551.78",Electricity utility costs
MOJ,NOMS,20/01/2014,Electricity,Cardiff,EDF ENERGY,5222251,"25,147.34",Electricity utility costs
MOJ,NOMS,20/01/2014,Electricity,Brixton,EDF ENERGY,5222251,"26,405.83",Electricity utility costs
MOJ,NOMS,20/01/2014,Electricity,Bristol,EDF ENERGY,5222251,"25,351.20",Electricity utility costs
MOJ,NOMS,20/01/2014,Electricity,Brinsford,EDF ENERGY,5222251,"26,132.17",Electricity utility costs
MOJ,NOMS,20/01/2014,Electricity,Belmarsh,EDF ENERGY,5222251,"57,552.17",Electricity utility costs
MOJ,NOMS,21/01/2014,Fee Paid Staff,Exeter,DORSET HEALTH CARE UNIVERSITY NHS FOUNDATION TRUST,5221389,"54,571.81",Healthcare services in prison; amount is recovered from the local Area Teams of NHS England
MOJ,NOMS,17/01/2014,Gas,Wymott,CORONA ENERGY RETAIL 4 LTD,5221176,"35,999.06",Gas utility costs
MOJ,NOMS,17/01/2014,Gas,Woodhill,CORONA ENERGY RETAIL 4 LTD,5221176,"43,137.67",Gas utility costs
MOJ,NOMS,17/01/2014,Gas,Winchester,CORONA ENERGY RETAIL 4 LTD,5221176,"30,373.81",Gas utility costs
MOJ,NOMS,17/01/2014,Gas,Whitemoor,CORONA ENERGY RETAIL 4 LTD,5221176,"35,904.92",Gas utility costs
MOJ,NOMS,17/01/2014,Gas,Whatton,CORONA ENERGY RETAIL 4 LTD,5221176,"30,309.86",Gas utility costs
MOJ,NOMS,17/01/2014,Gas,Wealstun,CORONA ENERGY RETAIL 4 LTD,5221176,"41,924.72",Gas utility costs
MOJ,NOMS,17/01/2014,Gas,Wandsworth,CORONA ENERGY RETAIL 4 LTD,5221176,"54,163.74",Gas utility costs
MOJ,NOMS,17/01/2014,Gas,Wakefield,CORONA ENERGY RETAIL 4 LTD,5221176,"32,754.46",Gas utility costs
MOJ,NOMS,17/01/2014,Gas,Verne (The),CORONA ENERGY RETAIL 4 LTD,5221176,"36,854.39",Gas utility costs
MOJ,NOMS,17/01/2014,Gas,Swinfen Hall,CORONA ENERGY RETAIL 4 LTD,5221176,"26,614.15",Gas utility costs
MOJ,NOMS,17/01/2014,Gas,Styal,CORONA ENERGY RETAIL 4 LTD,5221176,"35,805.30",Gas utility costs
MOJ,NOMS,17/01/2014,Gas,Stoke Heath,CORONA ENERGY RETAIL 4 LTD,5221176,"40,595.39",Gas utility costs
MOJ,NOMS,17/01/2014,Gas,Stafford,CORONA ENERGY RETAIL 4 LTD,5221176,"33,969.17",Gas utility costs
MOJ,NOMS,17/01/2014,Gas,Sheppey Clustered Services,CORONA ENERGY RETAIL 4 LTD,5221176,"94,849.42",Gas utility costs
MOJ,NOMS,17/01/2014,Gas,Rochester,CORONA ENERGY RETAIL 4 LTD,5221176,"31,574.77",Gas utility costs
MOJ,NOMS,17/01/2014,Gas,Ranby,CORONA ENERGY RETAIL 4 LTD,5221176,"57,563.14",Gas utility costs
MOJ,NOMS,17/01/2014,Gas,Portland,CORONA ENERGY RETAIL 4 LTD,5221176,"31,560.92",Gas utility costs
MOJ,NOMS,17/01/2014,Gas,Onley,CORONA ENERGY RETAIL 4 LTD,5221176,"43,375.06",Gas utility costs
MOJ,NOMS,17/01/2014,Gas,Oakwood,CORONA ENERGY RETAIL 4 LTD,5221176,"57,307.56",Gas utility costs
MOJ,NOMS,17/01/2014,Gas,Nottingham,CORONA ENERGY RETAIL 4 LTD,5221176,"27,408.74",Gas utility costs
MOJ,NOMS,17/01/2014,Gas,Northumberland,CORONA ENERGY RETAIL 4 LTD,5221176,"70,127.03",Gas utility costs
MOJ,NOMS,17/01/2014,Gas,Mount (The),CORONA ENERGY RETAIL 4 LTD,5221176,"45,906.50",Gas utility costs
MOJ,NOMS,17/01/2014,Gas,Moorland,CORONA ENERGY RETAIL 4 LTD,5221176,"240,945.94",Gas utility costs
MOJ,NOMS,17/01/2014,Gas,Manchester,CORONA ENERGY RETAIL 4 LTD,5221176,"47,650.19",Gas utility costs
MOJ,NOMS,17/01/2014,Gas,Maidstone,CORONA ENERGY RETAIL 4 LTD,5221176,"36,244.36",Gas utility costs
MOJ,NOMS,17/01/2014,Gas,Long Lartin,CORONA ENERGY RETAIL 4 LTD,5221176,"37,579.79",Gas utility costs
MOJ,NOMS,17/01/2014,Gas,Littlehey,CORONA ENERGY RETAIL 4 LTD,5221176,"48,589.39",Gas utility costs
MOJ,NOMS,17/01/2014,Gas,Lindholme,CORONA ENERGY RETAIL 4 LTD,5221176,"41,381.58",Gas utility costs
MOJ,NOMS,17/01/2014,Gas,Lincoln,CORONA ENERGY RETAIL 4 LTD,5221176,"41,906.62",Gas utility costs
MOJ,NOMS,17/01/2014,Gas,Leyhill,CORONA ENERGY RETAIL 4 LTD,5221176,"38,513.47",Gas utility costs
MOJ,NOMS,08/01/2014,Gas,Lewes,COFELY ENERGY SERVICES UK LTD,5212757,"62,971.92",Heat Energy Services
MOJ,NOMS,17/01/2014,Gas,Leeds,CORONA ENERGY RETAIL 4 LTD,5221176,"39,596.96",Gas utility costs
MOJ,NOMS,17/01/2014,Gas,Lancaster Farms,CORONA ENERGY RETAIL 4 LTD,5221176,"28,576.45",Gas utility costs
MOJ,NOMS,17/01/2014,Gas,Kirkham,CORONA ENERGY RETAIL 4 LTD,5221176,"52,263.46",Gas utility costs
MOJ,NOMS,17/01/2014,Gas,Isle of Wight,CORONA ENERGY RETAIL 4 LTD,10442352,"33,881.50",Gas utility costs
MOJ,NOMS,17/01/2014,Gas,Holme House,CORONA ENERGY RETAIL 4 LTD,5221176,"33,913.04",Gas utility costs
MOJ,NOMS,17/01/2014,Gas,Holloway,CORONA ENERGY RETAIL 4 LTD,5221176,"32,401.84",Gas utility costs
MOJ,NOMS,17/01/2014,Gas,Hindley,CORONA ENERGY RETAIL 4 LTD,5221176,"27,512.29",Gas utility costs
MOJ,NOMS,17/01/2014,Gas,Highpoint,CORONA ENERGY RETAIL 4 LTD,5221176,"71,208.34",Gas utility costs
MOJ,NOMS,17/01/2014,Gas,Highdown,CORONA ENERGY RETAIL 4 LTD,5221176,"55,044.56",Gas utility costs
MOJ,NOMS,17/01/2014,Gas,Hewell,CORONA ENERGY RETAIL 4 LTD,5221176,"53,106.05",Gas utility costs
MOJ,NOMS,17/01/2014,Gas,Haverigg,CORONA ENERGY RETAIL 4 LTD,5221176,"35,649.54",Gas utility costs
MOJ,NOMS,17/01/2014,Gas,Grendon,CORONA ENERGY RETAIL 4 LTD,5221176,"34,885.91",Gas utility costs
MOJ,NOMS,17/01/2014,Gas,Glen Parva,CORONA ENERGY RETAIL 4 LTD,5221176,"41,429.46",Gas utility costs
MOJ,NOMS,17/01/2014,Gas,Gartree,CORONA ENERGY RETAIL 4 LTD,5221176,"26,530.19",Gas utility costs
MOJ,NOMS,17/01/2014,Gas,Garth,CORONA ENERGY RETAIL 4 LTD,5221176,"33,901.66",Gas utility costs
MOJ,NOMS,17/01/2014,Gas,G4S Birmingham,CORONA ENERGY RETAIL 4 LTD,5221176,"67,458.31",Gas utility costs
MOJ,NOMS,17/01/2014,Gas,Frankland,CORONA ENERGY RETAIL 4 LTD,5221176,"53,820.58",Gas utility costs
MOJ,NOMS,17/01/2014,Gas,Ford,CORONA ENERGY RETAIL 4 LTD,5221176,"37,039.28",Gas utility costs
MOJ,NOMS,17/01/2014,Gas,Feltham,CORONA ENERGY RETAIL 4 LTD,5221176,"64,671.16",Gas utility costs
MOJ,NOMS,17/01/2014,Gas,Featherstone,CORONA ENERGY RETAIL 4 LTD,5221176,"49,053.77",Gas utility costs
MOJ,NOMS,17/01/2014,Gas,Everthorpe,CORONA ENERGY RETAIL 4 LTD,5221176,"31,754.87",Gas utility costs
MOJ,NOMS,17/01/2014,Gas,Doncaster,CORONA ENERGY RETAIL 4 LTD,5221176,"31,114.10",Gas utility costs
MOJ,NOMS,08/01/2014,Gas,Dartmoor,COFELY ENERGY SERVICES UK LTD,5211484,"83,670.73",Heat Energy Services
MOJ,NOMS,17/01/2014,Gas,Channings Wood,CORONA ENERGY RETAIL 4 LTD,5221176,"50,529.19",Gas utility costs
MOJ,NOMS,17/01/2014,Gas,Bullingdon,CORONA ENERGY RETAIL 4 LTD,5221176,"56,747.48",Gas utility costs
MOJ,NOMS,17/01/2014,Gas,Brixton,CORONA ENERGY RETAIL 4 LTD,5221176,"33,343.27",Gas utility costs
MOJ,NOMS,17/01/2014,Gas,Bristol,CORONA ENERGY RETAIL 4 LTD,5221176,"31,951.21",Gas utility costs
MOJ,NOMS,17/01/2014,Gas,Brinsford,CORONA ENERGY RETAIL 4 LTD,5221176,"26,593.14",Gas utility costs
MOJ,NOMS,17/01/2014,Gas,Belmarsh,CORONA ENERGY RETAIL 4 LTD,5221176,"55,325.40",Gas utility costs
MOJ,NOMS,17/01/2014,Gas,Aylesbury,CORONA ENERGY RETAIL 4 LTD,5221176,"33,320.70",Gas utility costs
MOJ,NOMS,14/01/2014,General Maintenance Materials,Centrally Managed ,TRAKA PLC,5216473,"435,390.25",Maintenance work
MOJ,NOMS,41663,HM Revenue & Customs,Control Accounts,HM Revenue & Customs,XX0000100271577,"58,127.76",Payment to HMRC
MOJ,NOMS,16/01/2014,Intangible - Software - Acquisitions,MOJ Shared Services NOMS Delivery,QLIKTECH UK LTD,5222332,"54,598.32",Computer software licenses
MOJ,NOMS,14/01/2014,Legal Advice,MOJ Shared Services NOMS Delivery,DAVITT JONES BOULD,5217029,"49,460.00","All legal advice, excluding legal representation."
MOJ,NOMS,06/01/2014,Legal Representation,MOJ Shared Services NOMS Delivery,TREASURY SOLICITORS,5209936,"1,341,681.60",Legal representation
MOJ,NOMS,10/01/2014,Legal Representation,MOJ Shared Services NOMS Delivery,TREASURY SOLICITORS,5215673,"1,292,909.01",Legal representation
MOJ,NOMS,28/01/2014,Legal Representation,Director PSP Front Line Centrally Managed,HER MAJESTY'S COURTS SERVICE,5235237,"83,099.05",Legal representation
MOJ,NOMS,29/01/2014,Legal Representation,Director PSP Front Line Centrally Managed,HER MAJESTY'S COURTS SERVICE,5236159,"37,832.14",Legal representation
MOJ,NOMS,24/01/2014,Library Fees,Commissioning Group,MILTON KEYNES COLLEGE,5231461,"30,000.00",Library fees
MOJ,NOMS,28/01/2014,NACRO,PSP Regions Frontline Centrally Managed,ORMISTON CHILDREN & FAMILIES TRUST,5233859,"246,523.92",Resettlement and community services for prisoners 
MOJ,NOMS,15/01/2014,"New structural works, structural maintenance and equipment",Wakefield,GAME ENGINEERING LTD,5140081,"90,381.00",Maintenance work
MOJ,NOMS,30/01/2014,"New structural works, structural maintenance and equipment",TSS Kent and Sussex,CULLINS GROUNDWORKS,5202208,"45,355.20",Maintenance work
MOJ,NOMS,15/01/2014,"New structural works, structural maintenance and equipment",Leeds,DEWEY WATERS LTD,5219531,"27,210.00",Maintenance work
MOJ,NOMS,30/01/2014,"New structural works, structural maintenance and equipment",Isle of Wight,NOVUS PROPERTY SERVICES LTD,5238672,"25,063.70",Maintenance work
MOJ,NOMS,13/01/2014,"New structural works, structural maintenance and equipment",Hindley,EDMUNDSON ELECTRICAL LTD,5216400,"32,714.02",Maintenance work
MOJ,NOMS,08/01/2014,"New structural works, structural maintenance and equipment",Guys Marsh,SOUTHERN ELECTRIC CONTRACTING LTD TRADING AS SSE CONTRACTING,5201088,"43,108.33",Maintenance work
MOJ,NOMS,20/01/2014,"New structural works, structural maintenance and equipment",Grendon,PRINCEBUILD,5208707,"60,000.00",Maintenance work
MOJ,NOMS,20/01/2014,"New structural works, structural maintenance and equipment",Estates Capacity,HENRY BOOT CONSTRUCTION (U K) LTD,5224718,"183,671.38",Maintenance work
MOJ,NOMS,20/01/2014,"New structural works, structural maintenance and equipment",Estates Capacity,HENRY BOOT CONSTRUCTION (U K) LTD,5183779,"179,600.96",Maintenance work
MOJ,NOMS,08/01/2014,"New structural works, structural maintenance and equipment",Estates Capacity,ISG CONSTRUCTION LTD,5205017,"152,493.97",Maintenance work
MOJ,NOMS,29/01/2014,"New structural works, structural maintenance and equipment",Estates Capacity,STOFORD CASTLEGATE LTD,5200477,"125,219.17",Maintenance work
MOJ,NOMS,13/01/2014,"New structural works, structural maintenance and equipment",Estates Capacity,SHAYLOR GROUP PLC,5216565,"115,800.00",Maintenance work
MOJ,NOMS,02/01/2014,"New structural works, structural maintenance and equipment",Estates Capacity,SHEPHERD CONSTRUCTION LTD,5207027,"89,407.32",Maintenance work
MOJ,NOMS,23/01/2014,"New structural works, structural maintenance and equipment",Estates Capacity,SHEPHERD CONSTRUCTION LTD,5229427,"84,283.44",Maintenance work
MOJ,NOMS,27/01/2014,"New structural works, structural maintenance and equipment",Estates Capacity,WATES CONSTRUCTION LTD,5218466,"52,636.80",Maintenance work
MOJ,NOMS,30/01/2014,"New structural works, structural maintenance and equipment",Estates Capacity,HENRY BOOT CONSTRUCTION (U K) LTD,5234841,"48,266.89",Maintenance work
MOJ,NOMS,24/01/2014,"New structural works, structural maintenance and equipment",Buckley Hall,GLENBEIGH CONSTRUCTION LTD,5181096,"25,840.90",Maintenance work
MOJ,NOMS,24/01/2014,"New structural works, structural maintenance and equipment",Buckley Hall,GLENBEIGH CONSTRUCTION LTD,5215823,"25,840.90",Maintenance work
MOJ,NOMS,22/01/2014,"New structural works, structural maintenance and equipment",Aylesbury,WRIGHT COTTRELL,5228753,"29,460.77",Maintenance work
MOJ,NOMS,08/01/2014,Other Fuels,Wayland,HARGREAVES (UK) SERVICES LTD,10423786,"37,631.64",Fuel utility costs
MOJ,NOMS,16/01/2014,Other Fuels,Transport Group,HARVEST ENERGY LTD,5221684,"26,366.40",Fuel utility costs
MOJ,NOMS,08/01/2014,Other Fuels,Sudbury,HALL FUELS,5209853,"26,859.35",Fuel utility costs
MOJ,NOMS,15/01/2014,Other Fuels,Sudbury,HALL FUELS,5220928,"26,136.60",Fuel utility costs
MOJ,NOMS,15/01/2014,Other Fuels,Risley,HARGREAVES (UK) SERVICES LTD,41739384,"32,733.28",Fuel utility costs
MOJ,NOMS,14/01/2014,Other Fuels,Coldingley,HALL FUELS,5182499,"27,496.80",Fuel utility costs
MOJ,NOMS,31/01/2014,Other Fuels,Coldingley,HALL FUELS,5206039,"27,436.32",Fuel utility costs
MOJ,NOMS,31/01/2014,Other Fuels,Coldingley,HALL FUELS,5234015,"26,727.84",Fuel utility costs
MOJ,NOMS,06/01/2014,Payments to voluntary Organisations,PSP Regions Frontline Centrally Managed,NACRO,5168873,"106,694.66",Resettlement and community services for prisoners 
MOJ,NOMS,08/01/2014,Pin Phone Suspense,Wandsworth,BT PAYPHONES,5213260,"27,647.33",Pin phone credits for prisoner use. The money is repaid by prisoners from their own funds so this is at no cost to the taxpayer 
MOJ,NOMS,08/01/2014,Pin Phone Suspense,Manchester,BT PAYPHONES,5213321,"31,414.65",Pin phone credits for prisoner use. The money is repaid by prisoners from their own funds so this is at no cost to the taxpayer 
MOJ,NOMS,08/01/2014,PIT - Costs through Relocation Company,Haverigg,CARTUS LTD,5211047,"71,000.00",Staff relocation services
MOJ,NOMS,29/01/2014,PIT - Costs through Relocation Company,Gartree,CARTUS LTD,5237379,"93,750.00",Staff relocation services
MOJ,NOMS,13/01/2014,Plant and Machinery - Acquisitions,Portland,BRIGGS EQUIPMENT UK LTD,5196125,"102,044.35",Plant and machinery
MOJ,NOMS,31/01/2014,Plant and Machinery - Acquisitions,Manchester,BRADSHAW JOHN LTD,5240736,"41,040.00",Plant and machinery
MOJ,NOMS,10/01/2014,Plant and Machinery - Acquisitions,Leeds,BRIGGS EQUIPMENT UK LTD,5215275,"29,604.00",Plant and machinery
MOJ,NOMS,31/01/2014,Plant and Machinery - Acquisitions,Channings Wood,ERNEST DOE & SONS LTD,5221662,"32,160.00",Plant and machinery
MOJ,NOMS,06/01/2014,Prison Shop Cost of Sales,Retail Project Charges,DHL SUPPLY CHAIN LTD,5207597,"351,711.18",Prison shop run through a national contract 
MOJ,NOMS,15/01/2014,Prison Shop Cost of Sales,Retail Project Charges,DHL SUPPLY CHAIN LTD,5212391,"337,902.58",Prison shop run through a national contract 
MOJ,NOMS,15/01/2014,Prison Shop Cost of Sales,Retail Project Charges,DHL SUPPLY CHAIN LTD,5220495,"325,143.65",Prison shop run through a national contract 
MOJ,NOMS,06/01/2014,Prison Shop Cost of Sales (No VAT),Retail Project Charges,DHL SUPPLY CHAIN LTD,5207597,"191,054.23",Prison shop run through a national contract 
MOJ,NOMS,15/01/2014,Prison Shop Cost of Sales (No VAT),Retail Project Charges,DHL SUPPLY CHAIN LTD,5220495,"187,756.77",Prison shop run through a national contract 
MOJ,NOMS,15/01/2014,Prison Shop Cost of Sales (No VAT),Retail Project Charges,DHL SUPPLY CHAIN LTD,5212391,"174,194.03",Prison shop run through a national contract 
MOJ,NOMS,28/01/2014,"Prisoner Compensation over 5,000",Liverpool,TREASURY SOLICITORS,5235239,"58,240.00",Costs in compensation claims - prisoners
MOJ,NOMS,29/01/2014,Probation - Approved premises,Voluntary Approved Premises,CARDIGAN HOUSE APPROVED PREMISE,5217087,"77,528.33",Grant to voluntary approved probation premises
MOJ,NOMS,29/01/2014,Probation - Approved premises,Voluntary Approved Premises,HESTIA HOUSING SUPPORT CO LTD REF BATTERSEA & STREATHAM,5217092,"59,031.83",Grant to voluntary approved probation premises
MOJ,NOMS,29/01/2014,Probation - Approved premises,Voluntary Approved Premises,ELIZABETH FRY APPROVED PREMISES,5217090,"58,531.58",Grant to voluntary approved probation premises
MOJ,NOMS,29/01/2014,Probation - Approved premises,Voluntary Approved Premises,RIPON HOUSE,5217093,"58,364.83",Grant to voluntary approved probation premises
MOJ,NOMS,29/01/2014,Probation - Approved premises,Voluntary Approved Premises,WEST LONDON MISSION REF KATHERINE HUGHES HOUSE,5217101,"54,612.75",Grant to voluntary approved probation premises
MOJ,NOMS,29/01/2014,Probation - Approved premises,Voluntary Approved Premises,ST JOHN'S APPROVED PREMISES,5217099,"53,945.75",Grant to voluntary approved probation premises
MOJ,NOMS,29/01/2014,Probation - Approved premises,Voluntary Approved Premises,ADELAIDE HOUSE,5217082,"53,445.50",Grant to voluntary approved probation premises
MOJ,NOMS,29/01/2014,Probation - Approved premises,Voluntary Approved Premises,ST VINCENT DE PAUL SOCIETY REF OZANAM HOUSE,5217096,"52,695.08",Grant to voluntary approved probation premises
MOJ,NOMS,29/01/2014,Probation - Approved premises,Voluntary Approved Premises,ASHLEY HOUSE,5217084,"50,860.75",Grant to voluntary approved probation premises
MOJ,NOMS,29/01/2014,Probation - Approved premises,Voluntary Approved Premises,HESTIA HOUSING SUPPORT CO LTD REF BATTERSEA & STREATHAM,5217091,"48,859.67",Grant to voluntary approved probation premises
MOJ,NOMS,29/01/2014,Probation - Approved premises,Voluntary Approved Premises,ST VINCENT DE PAUL SOCIETY REF ST CHRISTOPHERS,5217097,"48,442.75",Grant to voluntary approved probation premises
MOJ,NOMS,24/01/2014,Probation - Approved premises,Offender Management and Public Protection Group,LANGLEY HOUSE TRUST,5230157,"118,850.00",Grant to voluntary approved probation premises
MOJ,NOMS,15/01/2014,Professional Advice,Procurement Group,BEACHCROFT LLP,5215105,"26,730.80",Professional advice
MOJ,NOMS,23/01/2014,Professional Advice,MOJ Shared Services NOMS Delivery,MYCSP LTD,5214138,"90,464.00",Professional advice
MOJ,NOMS,23/01/2014,Professional Advice,MOJ Shared Services NOMS Delivery,MYCSP LTD,5214135,"36,640.00",Professional advice
MOJ,NOMS,23/01/2014,Professional Advice,MOJ Shared Services NOMS Delivery,MYCSP LTD,5214132,"29,520.00",Professional advice
MOJ,NOMS,08/01/2014,Professional Advice,FM Property Unit,FAITHFUL & GOULD,5177592,"53,300.00",Professional advice
MOJ,NOMS,14/01/2014,Professional Advice,Estates Capacity,JONES LANG LASALLE LTD,5199903,"47,422.80",Professional advice
MOJ,NOMS,27/01/2014,Professional Advice,Estates Capacity,JACOBS UK LTD,5233880,"31,717.42",Professional advice
MOJ,NOMS,10/01/2014,Professional works advice / services,Isis,MITIE JUSTICE LTD,5181040,"26,029.94",Fees for professional services for maintenance on prison estate
MOJ,NOMS,14/01/2014,Professional works advice / services,Isis,MITIE JUSTICE LTD,5213040,"26,029.94",Fees for professional services for maintenance on prison estate
MOJ,NOMS,08/01/2014,Professional works advice / services,Brixton,MITIE JUSTICE LTD,5211802,"25,897.69",Fees for professional services for maintenance on prison estate
MOJ,NOMS,17/01/2014,Rates and Ground Rents,MOJ Shared Services NOMS Delivery,CYNCOED PROPERTY (CARDIFF) LTD,5218485,"31,200.00","Payment of rents, business rates and council tax"
MOJ,NOMS,23/01/2014,Rates and Ground Rents,HOPS Payroll Charge,LIVERPOOL CITY COUNCIL,DM9005551736/HOHOPS/13-14,"-81,246.00","Payment of rents, business rates and council tax"
MOJ,NOMS,29/01/2014,Rates and Ground Rents,Estates Capacity,HOME OFFICE,5237325,"3,914,207.55","Payment of rents, business rates and council tax"
MOJ,NOMS,29/01/2014,Rates and Ground Rents,Estates Capacity,HOME OFFICE,5237327,"125,883.37","Payment of rents, business rates and council tax"
MOJ,NOMS,23/01/2014,Rates and Ground Rents,Estates Capacity,DURHAM COUNTY COUNCIL,5173801,"108,330.00","Payment of rents, business rates and council tax"
MOJ,NOMS,23/01/2014,Rates and Ground Rents,Estates Capacity,DURHAM COUNTY COUNCIL,5230184,"43,579.02","Payment of rents, business rates and council tax"
MOJ,NOMS,07/01/2014,Rates and Ground Rents,Estates Capacity,ISLE OF WIGHT COUNCIL,5187514,"-103,954.77","Payment of rents, business rates and council tax"
MOJ,NOMS,31/01/2014,Raw Materials Issued,Featherstone,L & P (PSCS),5235820,"34,012.68",Raw materials for prison industries
MOJ,NOMS,07/01/2014,Resource Grants / Grant-in-Aid,Commissioning Strategies Group,RECOOP,5207853,"37,479.25",Grant payments to voluntary and community sector organisations
MOJ,NOMS,02/01/2014,Resource Grants / Grant-in-Aid,Commissioning Strategies Group,RECOOP,5207852,"37,479.00",Grant payments to voluntary and community sector organisations
MOJ,NOMS,29/01/2014,Resource Grants / Grant-in-Aid,Commissioning Strategies Group,BARNARDO'S,5234961,"37,125.00",Grant payments to voluntary and community sector organisations
MOJ,NOMS,16/01/2014,Resource Grants / Grant-in-Aid,Commissioning Strategies Group,CLINKS,5220746,"25,000.00",Grant payments to voluntary and community sector organisations
MOJ,NOMS,30/01/2014,Resource Grants / Grant-in-Aid,Commercial Development Group,PRAXIS COMMUNITY PROJECTS,5238332,"47,375.25",Grant payments to voluntary and community sector organisations
MOJ,NOMS,31/01/2014,Secondments,Learning and Development Group,LONDON PROBATION TRUST,5230863,"35,290.42",Payments for staff seconded to NOMS
MOJ,NOMS,29/01/2014,Secondments,Hindley,LIVERPOOL CITY COUNCIL,5236865,"50,954.31",Payments for staff seconded to NOMS
MOJ,NOMS,09/01/2014,Secondments,Commercial Development Group,DERBYSHIRE PROBATION TRUST,5212790,"25,934.56",Payments for staff seconded to NOMS
MOJ,NOMS,02/01/2014,Secondments,Bristol,AVON AND SOMERSET PROBATION TRUST,5207743,"73,366.38",Payments for staff seconded to NOMS
MOJ,NOMS,02/01/2014,Software services,NOMIS Programme,HOME OFFICE,5207753,"26,424.59",IT maintenance and support
MOJ,NOMS,23/01/2014,Specialist Contractors,Procurement Group,PRICEWATERHOUSECOOPERS LLP,5225360,"1,449,344.34",Specialist contractors engaged under a fixed-term contract for services 
MOJ,NOMS,20/01/2014,Specialist Contractors,MOJ Shared Services MOJ Delivery,CAPITA BUSINESS SERVICES LTD,5225356,"38,016.96",Specialist contractors engaged under a fixed-term contract for services 
MOJ,NOMS,02/01/2014,"Staff Compensation over 5,000",Whitemoor,TREASURY SOLICITORS,5207932,"29,974.04",Costs in compensation claims - staff
MOJ,NOMS,10/01/2014,"Staff Compensation over 5,000",Hindley,TREASURY SOLICITORS,5214854,"101,343.77",Costs in compensation claims - staff
MOJ,NOMS,17/01/2014,"Staff Compensation over 5,000",Bullwood Hall,TREASURY SOLICITORS,5223870,"35,000.00",Costs in compensation claims - staff
MOJ,NOMS,16/01/2014,Structural works / maintenance - Fees & professional services,Estates Capacity,FAITHFUL & GOULD,5221698,"34,902.12",Fees for professional services for maintenance on prison estate
MOJ,NOMS,24/01/2014,Training and Further Education Courses,Learning and Development Group,UNIVERSITY OF PORTSMOUTH,5229082,"71,591.92",Staff training and further education courses
MOJ,NOMS,22/01/2014,Training and Further Education Courses,Learning and Development Group,UNIVERSITY OF PORTSMOUTH,5226331,"49,482.60",Staff training and further education courses
MOJ,NOMS,22/01/2014,Training and Further Education Courses,Learning and Development Group,UNIVERSITY OF PORTSMOUTH,5226332,"25,391.65",Staff training and further education courses
MOJ,NOMS,24/01/2014,Training and Further Education Courses,Learning and Development Group,UNIVERSITY OF PORTSMOUTH,5229080,"25,144.00",Staff training and further education courses
MOJ,NOMS,30/01/2014,Training and Further Education Courses,Director PSP Front Line Centrally Managed,SAID BUSINESS SCHOOL,5238557,"25,000.00",Staff training and further education courses
MOJ,NOMS,22/01/2014,Translation Services,MOJ Shared Services NOMS Delivery,CAPITA TRANSLATION & INTERPRETING,5222298,"1,672,708.30",Translation and interpreting services on behalf of HMCTS
MOJ,NOMS,31/01/2014,Travel - Non-Taxable,HOPS Payroll Charge,REDFERN TRAVEL,5238988,"697,231.21",Staff work related travel
MOJ,NOMS,20/01/2014,Uniforms & protective Clothing,Procurement Group,JIANGSU SUNSHINE DONGSHENG IMP & EXP CO LTD,5215007,"31,031.35",Staff uniforms
MOJ,NOMS,30/01/2014,Vehicle hire  costs,MOJ Shared Services NOMS Delivery,J P MORGAN EUROPE LTD,5238986,"61,400.07",Vehicle running costs including fuel and tyres and parts.  
MOJ,NOMS,02/01/2014,VISA Costs,MOJ Shared Services NOMS Delivery,J P MORGAN EUROPE LTD,5208968,"1,202,776.34",Purchases via Government Procurement Card (GPC)
MOJ,NOMS,30/01/2014,VISA Costs,MOJ Shared Services NOMS Delivery,J P MORGAN EUROPE LTD,5238986,"1,200,904.15",Purchases via Government Procurement Card (GPC)
MOJ,NOMS,07/01/2014,VISA Costs,MOJ Shared Services NOMS Delivery,ALLSTAR BUSINESS SOLUTIONS LTD,5210980,"74,365.90",Purchase of motor fuel
MOJ,NOMS,23/01/2014,VISA Costs,MOJ Shared Services NOMS Delivery,ALLSTAR BUSINESS SOLUTIONS LTD,5210982,"60,749.48",Purchase of motor fuel
MOJ,NOMS,17/01/2014,Waste disposal,Wandsworth,VEOLIA ENVIRONMENTAL SERVICES,5194921,"33,869.28",Disposal of waste
MOJ,NOMS,24/01/2014,Water and Sewage,Wandsworth,THAMES WATER UTILITIES LTD,5231541,"49,316.45",Water and sewage utility costs
MOJ,NOMS,21/01/2014,Water and Sewage,Swansea,DWR CMYRU WELSH WATER,5226966,"27,055.26",Water and sewage utility costs
MOJ,NOMS,17/01/2014,Water and Sewage,Sheppey Clustered Services,SOUTHERN WATER SERVICES LTD,5223819,"28,564.90",Water and sewage utility costs
MOJ,NOMS,17/01/2014,Water and Sewage,Rochester,SOUTHERN WATER SERVICES LTD,5225301,"25,508.22",Water and sewage utility costs
MOJ,NOMS,07/01/2014,Water and Sewage,Pentonville,THAMES WATER UTILITIES LTD,5199118,"56,431.99",Water and sewage utility costs
MOJ,NOMS,29/01/2014,Water and Sewage,Pentonville,THAMES WATER UTILITIES LTD,5237257,"31,720.55",Water and sewage utility costs
MOJ,NOMS,07/01/2014,Water and Sewage,Pentonville,THAMES WATER UTILITIES LTD,DM09OCT13/094/61175-85221,"-33,319.88",Water and sewage utility costs
MOJ,NOMS,14/01/2014,Water and Sewage,Moorland,YORKSHIRE WATER SERVICES LTD,5218600,"36,543.83",Water and sewage utility costs
MOJ,NOMS,03/01/2014,Water and Sewage,Liverpool,UNITED UTILITIES WATER PLC,5208958,"34,491.13",Water and sewage utility costs
MOJ,NOMS,24/01/2014,Water and Sewage,Isis,THAMES WATER UTILITIES LTD,5231547,"61,886.19",Water and sewage utility costs
MOJ,NOMS,03/01/2014,Water and Sewage,Highpoint,ANGLIAN WATER SERVICES LTD,5205043,"28,928.64",Water and sewage utility costs
MOJ,NOMS,03/01/2014,Water and Sewage,Highpoint,ANGLIAN WATER SERVICES LTD,5165338,"28,901.78",Water and sewage utility costs
MOJ,NOMS,03/01/2014,Water and Sewage,Highpoint,ANGLIAN WATER SERVICES LTD,DM17SEP13/058/110094778,"-34,441.09",Water and sewage utility costs
MOJ,NOMS,21/01/2014,Water and Sewage,Guys Marsh,BRISTOL & WESSEX WATER BILLING SERVICES LTD,5226969,"26,189.33",Water and sewage utility costs
MOJ,NOMS,30/01/2014,Water and Sewage,G4S Birmingham,SEVERN TRENT WATER LTD,5202180,"54,404.02",Water and sewage utility costs
MOJ,NOMS,29/01/2014,Water and Sewage,Featherstone,SEVERN TRENT WATER LTD,5237282,"-63,595.58",Water and sewage utility costs
MOJ,NOMS,14/01/2014,Water and Sewage,Dartmoor,SOUTH WEST WATER LTD,5218582,"25,675.93",Water and sewage utility costs
MOJ,NOMS,14/01/2014,Water and Sewage,Channings Wood,SOUTH WEST WATER LTD,5218584,"31,274.14",Water and sewage utility costs
MOJ,NOMS,27/01/2014,Water and Sewage,Aylesbury,THAMES WATER UTILITIES LTD,10447590,"123,991.78",Water and sewage utility costs
MOJ,NOMS,10/01/2014,WIP - Acquisitions,Estates Capacity,BRIDGEND CUSTODIAL SERVICES LTD,5205615,"2,623,607.05",Enhancement to buildings
MOJ,NOMS,15/01/2014,WIP - Acquisitions,Estates Capacity,LEND LEASE CONSTRUCTION (EMEA) LTD,5220331,"1,482,256.80",Enhancement to buildings
MOJ,NOMS,03/01/2014,WIP - Acquisitions,Estates Capacity,PETERBOROUGH PRISON MANAGEMENT LTD,5205010,"1,400,851.30",Enhancement to buildings
MOJ,NOMS,06/01/2014,WIP - Acquisitions,Estates Capacity,LEND LEASE CONSTRUCTION (EMEA) LTD,5205035,"1,238,400.00",Enhancement to buildings
MOJ,NOMS,14/01/2014,WIP - Acquisitions,Estates Capacity,BWP PROJECT SERVICES LTD,5220483,"1,141,910.40",Enhancement to buildings
MOJ,NOMS,09/01/2014,WIP - Acquisitions,Estates Capacity,LEND LEASE CONSTRUCTION (EMEA) LTD,5191257,"961,944.00",Enhancement to buildings
MOJ,NOMS,06/01/2014,WIP - Acquisitions,Estates Capacity,WATES CONSTRUCTION LTD,5203667,"698,376.00",Enhancement to buildings
MOJ,NOMS,14/01/2014,WIP - Acquisitions,Estates Capacity,INTERSERVE CONSTRUCTION LTD,5217698,"614,529.14",Enhancement to buildings
MOJ,NOMS,09/01/2014,WIP - Acquisitions,Estates Capacity,LEND LEASE CONSTRUCTION (EMEA) LTD,5196953,"359,329.01",Enhancement to buildings
MOJ,NOMS,03/01/2014,WIP - Acquisitions,Estates Capacity,WATES CONSTRUCTION LTD,5179492,"311,864.40",Enhancement to buildings
MOJ,NOMS,24/01/2014,WIP - Acquisitions,Estates Capacity,LORNE STEWART PLC,5231145,"265,058.50",Enhancement to buildings
MOJ,NOMS,02/01/2014,WIP - Acquisitions,Estates Capacity,GALLIFORD TRY CONSTRUCTION LTD,5189315,"260,314.09",Enhancement to buildings
MOJ,NOMS,22/01/2014,WIP - Acquisitions,Estates Capacity,LEND LEASE CONSTRUCTION (EMEA) LTD,5225958,"246,207.60",Enhancement to buildings
MOJ,NOMS,08/01/2014,WIP - Acquisitions,Estates Capacity,ISG CONSTRUCTION LTD,5205006,"233,992.99",Enhancement to buildings
MOJ,NOMS,16/01/2014,WIP - Acquisitions,Estates Capacity,INTERSERVE CONSTRUCTION LTD,5221560,"231,839.74",Enhancement to buildings
MOJ,NOMS,30/01/2014,WIP - Acquisitions,Estates Capacity,VINCI CONSTRUCTION UK LTD,5174492,"222,817.98",Enhancement to buildings
MOJ,NOMS,16/01/2014,WIP - Acquisitions,Estates Capacity,KIER CONSTRUCTION LTD,5221548,"193,490.40",Enhancement to buildings
MOJ,NOMS,10/01/2014,WIP - Acquisitions,Estates Capacity,KIER CONSTRUCTION LTD,5215408,"188,480.40",Enhancement to buildings
MOJ,NOMS,08/01/2014,WIP - Acquisitions,Estates Capacity,KIER CONSTRUCTION LTD,5193343,"170,487.60",Enhancement to buildings
MOJ,NOMS,06/01/2014,WIP - Acquisitions,Estates Capacity,VINCI CONSTRUCTION UK LTD,5166706,"158,825.02",Enhancement to buildings
MOJ,NOMS,15/01/2014,WIP - Acquisitions,Estates Capacity,KIER CONSTRUCTION LTD,5199815,"149,280.68",Enhancement to buildings
MOJ,NOMS,14/01/2014,WIP - Acquisitions,Estates Capacity,WATES CONSTRUCTION LTD,5218351,"135,573.60",Enhancement to buildings
MOJ,NOMS,14/01/2014,WIP - Acquisitions,Estates Capacity,KIER CONSTRUCTION LTD,5156187,"121,018.30",Enhancement to buildings
MOJ,NOMS,14/01/2014,WIP - Acquisitions,Estates Capacity,KIER CONSTRUCTION LTD,5199860,"113,162.99",Enhancement to buildings
MOJ,NOMS,22/01/2014,WIP - Acquisitions,Estates Capacity,KIER CONSTRUCTION LTD,5228731,"105,367.57",Enhancement to buildings
MOJ,NOMS,15/01/2014,WIP - Acquisitions,Estates Capacity,ISG CONSTRUCTION LTD,5220492,"100,544.93",Enhancement to buildings
MOJ,NOMS,14/01/2014,WIP - Acquisitions,Estates Capacity,WATES CONSTRUCTION LTD,5183446,"94,412.40",Enhancement to buildings
MOJ,NOMS,22/01/2014,WIP - Acquisitions,Estates Capacity,KIER CONSTRUCTION LTD,5228730,"84,000.00",Enhancement to buildings
MOJ,NOMS,10/01/2014,WIP - Acquisitions,Estates Capacity,SHAYLOR GROUP PLC,5196946,"80,119.88",Enhancement to buildings
MOJ,NOMS,08/01/2014,WIP - Acquisitions,Estates Capacity,GALLIFORD TRY CONSTRUCTION LTD,5212963,"74,137.30",Enhancement to buildings
MOJ,NOMS,20/01/2014,WIP - Acquisitions,Estates Capacity,HENRY BOOT CONSTRUCTION (U K) LTD,5224717,"64,988.40",Enhancement to buildings
MOJ,NOMS,27/01/2014,WIP - Acquisitions,Estates Capacity,WATES CONSTRUCTION LTD,5218466,"60,310.80",Enhancement to buildings
MOJ,NOMS,17/01/2014,WIP - Acquisitions,Estates Capacity,INTERSERVE CONSTRUCTION LTD,5224391,"53,992.56",Enhancement to buildings
MOJ,NOMS,09/01/2014,WIP - Professional Fees,Estates Capacity,HLN ARCHITECTS LTD,5189065,"96,271.04",Professional fees in respect of construction work-in-progress
MOJ,NOMS,03/01/2014,WIP - Professional Fees,Estates Capacity,WT PARTNERSHIP,5181800,"29,416.26",Professional fees in respect of construction work-in-progress
MOJ,NOMS,16/01/2014,WIP - Professional Fees,Estates Capacity,HLN ARCHITECTS LTD,5222778,"25,800.00",Professional fees in respect of construction work-in-progress
MOJ,NOMS,31/01/2014,Works,Estates Capacity,C R H FENCING LTD,5238578,"34,312.32",Materials for works maintenance
MOJ,NOMS,24/01/2014,Works,Estates Capacity,C R H FENCING LTD,5229784,"34,312.32",Materials for works maintenance
MOJ,NOMS,07/01/2014,Works,Estates Capacity,C R H FENCING LTD,5203461,"34,312.32",Materials for works maintenance
